[Event "2nd Doppelbauer Kiel GM 2022"]
[Site "Kiel"]
[Date "2022.07.03"]
[Round "6.5"]
[White "Rosner, Jonas"]
[Black "Pajeken, Jakob Leon"]
[Result "0-1"]
[ECO "D30"]
[WhiteElo "2469"]
[BlackElo "2398"]
[Annotator "TA"]
[PlyCount "168"]
[EventDate "2022.06.30"]
[EventType "tourn"]
[EventCountry "GER"]
[SourceTitle "playchess.com"]
[Source "ChessBase"]
[SourceQuality "1"]
[TimeControl "40/5400+30:1800+30"]

{[%evp 9,168,9,11,8,10,10,14,0,0,5,24,11,16,13,22,5,16,8,12,7,29,20,22,26,33,18,56,24,70,63,74,70,48,45,66,56,120,96,146,128,212,208,212,216,252,233,233,237,237,239,229,238,238,200,215,140,156,0,0,0,0,0,0,0,8,-545,-532,-499,-451,-651,-609,-662,-604,-726,-714,-29974,-29977,-29975,-29978,-29978,-29979,-29979,-29980,-29977,-29977,-29977,-29978,-29978,-29978,-29978,-29978,-29978,-29979,-29979,-29971,-29975,-29968,-29967,-29972,-29962,-29955,-29982,-29983,-29983,-29984,-29984,-29982,-29983,-29982,-29982,-29983,-29983,-29984,-29984,-29981,-29982,-29982,-29982,-29983,-29982,-29983,-29983,-29984,-29984,-29985,-29985,-29985,-29987,-29987,-29987,-588,-29987,-29987,-29987,-29988,-29988,-29989,-29990,-29991,-29991,-29990,-29990,-29991,-29991,-29992,-29992,-29993,-29994,-29993,-29993,-29994,-29994,-29993,-29993,-29994,-29994,-29995,-29995,-29996,-29996,-29997]} 1. d4 {[%emt 0:00:04]} Nf6 {[%emt 0:00:06]} 2. Nf3 {[%emt 0:00:16]} e6 {[%emt 0:00:04]} 3. c4 {[%emt 0:00:27]} a6 {[%emt 0:00:06]} 4. e3 {[%emt 0:04:20]} d5 {[%emt 0:00:05]} 5. b3 {[%emt 0:02:34]} c5 {[%emt 0:00:11]} 6. Bb2 {[%emt 0:01:15] D30: Queen's Gambit Declined: Systems without Nc3.} cxd4 {[%emt 0:00:13] 6...cxd4 scores better than 6...Nc6.} 7. exd4 {[%emt 0:00:31]} b6 {[%emt 0:00:07]} 8. Bd3 {[%emt 0:01:18] The position is equal.} Bb7 {[%emt 0:00:12]} 9. O-O {[%emt 0:00:30]} Be7 {[%emt 0:00:12]} 10. Nbd2 {[%emt 0:01:08]} Nbd7 {[%emt 0:00:26]} 11. Qe2 {[%emt 0:00:50]} O-O {[%emt 0:00:06]} 12. Rac1 {[%emt 0:00:56]} Rc8 {[%emt 0:04:16]} 13. Rfd1 {[%emt 0:01:58] [#]} Re8 $146 {[%emt 0:05:50]} ({Predecessor:} 13... dxc4 14. bxc4 Qc7 15. d5 Nc5 16. Ng5 exd5 17. cxd5 Rfe8 18. Nde4 Nfxe4 19. Nxe4 Qf4 {½-½ (28) Valinova,J (2391)-Meyer,K (2427) ICCF email 2019}) 14. Ne5 {[%emt 0:02:48]} Nf8 {[%emt 0:00:41]} 15. Ndf3 {[%emt 0:09:15] Black must now prevent Ng5.} h6 {[%emt 0:03:39] Inhibits Ng5.} 16. a4 {[%emt 0:13:45]} a5 {[%emt 0:08:21]} 17. c5 {[%emt 0:03:25]} bxc5 {[%emt 0:05:37]} 18. Bb5 {[%emt 0:00:47]} N8d7 {[%emt 0:02:10]} (18... Ne4 $11) 19. dxc5 $14 {[%emt 0:07:46]} Nxc5 {[%emt 0:00:37]} 20. Bxe8 {[%emt 0:00:50]} Qxe8 {[%emt 0:00:09]} 21. Nd4 {[%emt 0:02:31]} Ba6 {[%emt 0:03:14] Inhibits Qb5.} 22. Qe1 $36 {[%emt 0:02:08][%mdl 2048] White has good play.} Ra8 {[%emt 0:07:27]} (22... Bd6 $14) 23. Ndc6 {[%emt 0:11:15]} (23. Qxa5 $6 Be2 24. Qd2 Bxd1 25. Qxd1 Nfe4 $14) 23... Bd6 {[%emt 0:00:43]} (23... Nxb3 $142 24. Rc3 Nc5) 24. Qe3 {[%emt 0:03:55]} (24. Qxa5 $2 Nxb3 25. Qb6 Nxc1 26. Rxc1 Ne4 $19) 24... Nfd7 {[%emt 0:09:00]} (24... Nb7 $16 25. f3 d4 26. Nxd4 (26. Qxd4 Nd5 $14) 26... Nd5) 25. Nxd7 $18 {[%emt 0:03:23]} (25. Nxa5 $6 Bxe5 26. Bxe5 Nd3 27. Rxd3 Bxd3) 25... Nxd7 {[%emt 0:00:32]} 26. Nxa5 {[%emt 0:01:00]} Qd8 {[%emt 0:03:46] [#]} 27. Nc4 {[%emt 0:06:25][%mdl 512]} Bxc4 {[%emt 0:04:39]} 28. bxc4 {[%emt 0:00:13]} Qb8 {[%emt 0:00:11]} 29. Rb1 $1 {[%emt 0:02:13][%cal Ob2g7] Strongly threatening Bxg7!} ({Don't play} 29. cxd5 $6 Bxh2+ 30. Kf1 (30. Kh1 Bf4 $16) 30... Qxb2 $16) 29... Bxh2+ {[%emt 0:02:35]} 30. Kh1 {[%emt 0:00:01]} Bf4 {[%emt 0:02:16]} 31. Qf3 {[%emt 0:03:19][%cal Ob2g7] Threatens to win with Bxg7!} Rxa4 {[%emt 0:07:06] [#]} 32. Bxg7 $1 {[%emt 0:03:02][%mdl 512]} Qd6 {[%emt 0:01:27]} (32... Qc7 33. Bd4) 33. Qg4 {[%emt 0:01:36]} ({Better is} 33. Rd4 $16 Rxc4 34. Rxc4 dxc4 35. Rd1) 33... h5 $1 $11 {[%emt 0:01:17]} 34. Qxh5 {[%emt 0:02:37][%csl Gg7][%cal Rh5h8]} Kxg7 {[%emt 0:00:09] Really sharp!} 35. Qg4+ $1 {[%emt 0:00:46]} Kf8 {[%emt 0:04:53]} 36. cxd5 {[%emt 0:00:48]} Qe5 {[%emt 0:11:28]} ({Don't do} 36... Nf6 37. Qh4 Qe5 38. dxe6 $16) 37. g3 $2 {[%emt 0:04:26][%mdl 8192] [#] Loses the game.} (37. dxe6 $11 {and White has nothing to worry.} Qh8+ 38. Qh3 Qxh3+ 39. gxh3) 37... Bxg3 $1 $19 {[%emt 0:01:55][%mdl 512]} 38. Qxg3 {[%emt 0:02:58] [#]} Qh5+ {[%emt 0:00:07]} 39. Kg2 {[%emt 0:01:21]} (39. Kg1 $142 Rg4 40. dxe6 Rxg3+ 41. fxg3 Qc5+ 42. Kh1 Qc6+ 43. Kg1 Qxe6 44. Rf1) 39... Rg4 {[%emt 0:00:08]} 40. dxe6 {[%emt 0:00:34]} Rxg3+ {[%emt 0:00:07]} 41. fxg3 {[%emt 0:30:03]} Qe2+ {[%emt 0:30:09]} 42. Kg1 {[%emt 0:00:00]} Ne5 {[%emt 0:00:00]} 43. Rf1 {[%emt 0:00:00]} Nf3+ {[%emt 0:00:00]} 44. Rxf3 {[%emt 0:00:00]} Qxf3 {[%emt 0:00:00] KQ-KR} 45. e7+ {[%emt 0:00:00]} Kxe7 {[%emt 0:00:00]} 46. Kh2 {[%emt 0:00:00]} Qf2+ {[%emt 0:00:00]} 47. Kh1 {[%emt 0:00:00]} Qxg3 {[%emt 0:00:00]} 48. Rb7+ {[%emt 0:00:00]} Ke6 {[%emt 0:18:13]} 49. Re7+ {[%emt 0:00:00]} Kd6 {[%emt 0:00:00]} 50. Rd7+ {[%emt 0:00:00]} Kc6 {[%emt 0:00:00]} 51. Rxf7 {[%emt 0:00:00]} Qh3+ {[%emt 0:00:00]} 52. Kg1 {[%emt 0:00:00]} Qg4+ {[%emt 0:00:00]} 53. Kf2 {[%emt 0:00:00]} Kd5 {[%emt 0:00:00]} 54. Rf3 {[%emt 0:00:00]} Ke4 {[%emt 0:00:00]} 55. Rg3 {[%emt 0:00:00]} Qf4+ {[%emt 0:00:00]} 56. Kg2 {[%emt 0:00:00]} Qd2+ {[%emt 0:00:00]} 57. Kh3 {[%emt 0:00:00]} Qe1 {[%emt 0:00:00]} 58. Kg4 {[%emt 0:00:00]} Qa1 {[%emt 0:00:00]} 59. Kg5 {[%emt 0:00:00]} Qg7+ {[%emt 0:00:00]} 60. Kh4 {[%emt 0:00:00]} Qh8+ {[%emt 0:00:00]} 61. Kg5 {[%emt 0:00:00]} Qe5+ {[%emt 0:00:00]} 62. Kg4 {[%emt 0:00:00]} Qf4+ {[%emt 0:00:00]} 63. Kh3 {[%emt 0:00:00]} Qf1+ {[%emt 0:00:00]} 64. Kg4 {[%emt 0:00:00]} Qe1 {[%emt 0:00:00]} 65. Rg2 {[%emt 0:00:00]} Qd1+ {[%emt 0:00:00]} 66. Kg3 {[%emt 0:00:00]} Ke3 {[%emt 0:09:00]} 67. Kh2 {[%emt 0:00:00]} Qe1 {[%emt 0:00:00]} 68. Rg8 {[%emt 0:00:22]} Qh4+ {[%emt 0:00:00]} 69. Kg1 {[%emt 0:00:46]} Qf2+ {[%emt 0:00:00]} 70. Kh1 {[%emt 0:00:02][%cal Og8g3]} Qf7 {[%emt 0:00:00] Black mates.} 71. Rg3+ {[%emt 0:00:51]} Kf2 {[%emt 0:00:00]} 72. Rg2+ {[%emt 0:00:22]} Kf3 {[%emt 0:00:00]} 73. Kh2 {[%emt 0:00:46]} Qd5 {[%emt 0:00:00]} 74. Kg1 {[%emt 0:01:20]} Qd4+ {[%emt 0:00:00]} 75. Kh2 {[%emt 0:00:23]} Qe4 {[%emt 0:00:00]} 76. Kh1 {[%emt 0:00:41]} Qb1+ {[%emt 0:00:00]} 77. Kh2 {[%emt 0:00:04]} Qe1 {[%emt 0:00:00]} 78. Rg8 {[%emt 0:02:24]} Qh4+ {[%emt 0:00:00]} 79. Kg1 {[%emt 0:00:02]} Qd4+ {[%emt 0:00:00]} 80. Kh2 {[%emt 0:00:58]} Qd2+ {[%emt 0:00:00]} 81. Kg1 {[%emt 0:00:46]} Qc1+ {[%emt 0:00:00]} 82. Kh2 {[%emt 0:00:02]} Qc2+ {[%emt 0:00:00]} 83. Kg1 {[%emt 0:00:25]} Qb1+ {[%emt 0:00:00]} 84. Kh2 {[%emt 0:00:06]} Qa2+ {[%emt 0:00:00] Weighted Error Value: White=0.41/Black=0.09 (flawless)} 0-1

[Event "2nd Doppelbauer Kiel GM 2022"]
[Site "Kiel"]
[Date "2022.07.03"]
[Round "7.1"]
[White "Pajeken, Jakob Leon"]
[Black "Parvanyan, Ashot"]
[Result "1/2-1/2"]
[ECO "A11"]
[WhiteElo "2398"]
[BlackElo "2455"]
[Annotator "TA"]
[PlyCount "63"]
[EventDate "2022.06.30"]
[EventType "tourn"]
[EventCountry "GER"]
[SourceTitle "playchess.com"]
[Source "ChessBase"]
[SourceQuality "1"]
[TimeControl "40/5400+30:1800+30"]

{[%evp 15,63,0,0,0,0,0,0,0,0,0,12,0,0,0,0,0,0,0,-6,-3,0,0,0,0,25,29,14,15,22,24,37,0,42,35,36,30,35,37,34,33,37,33,33,35,38,25,26,0,0,0]} 1. Nf3 {[%emt 0:00:10]} Nf6 {[%emt 0:02:06]} 2. g3 {[%emt 0:00:25]} d5 {[%emt 0:01:03]} 3. Bg2 {[%emt 0:00:11]} c6 {[%emt 0:00:30]} 4. O-O {[%emt 0:00:39]} Bg4 {[%emt 0:00:24]} 5. d3 {[%emt 0:02:23]} Nbd7 {[%emt 0:02:27]} 6. c4 {[%emt 0:01:05]} e6 {[%emt 0:01:38]} 7. cxd5 {[%emt 0:03:10]} exd5 {[%emt 0:00:20]} 8. Nc3 {[%emt 0:02:46]} Bc5 {[%emt 0:00:21]} 9. e4 {[%emt 0:04:20] A11: English Opening: 1...c6.} dxe4 {[%emt 0:08:52]} 10. dxe4 {[%emt 0:01:14]} O-O {[%emt 0:01:13]} 11. h3 {[%emt 0:02:57]} Bxf3 {[%emt 0:02:37]} 12. Qxf3 {[%emt 0:04:20]} Re8 {[%emt 0:00:48] [#]} 13. Bf4 $146 {[%emt 0:08:52]} ({Predecessor:} 13. Kh2 Ne5 14. Qe2 Qd3 15. Qxd3 Nxd3 16. f4 Rad8 17. e5 Nd7 18. Ne4 Nxc1 19. Raxc1 {1-0 (50) Badea,B (2479)-Marzano,C (2233) Montecatini Terme 1999}) 13... Ne5 {[%emt 0:02:30]} 14. Qe2 {[%emt 0:01:54]} Qd3 {[%emt 0:01:53]} 15. Rfe1 {[%emt 0:03:22][%cal Bf1e1,Be1e2,Be2d2][%mdl 32]} Rad8 {[%emt 0:11:37]} 16. Rad1 {[%emt 0:04:10]} Qxe2 {[%emt 0:03:29]} 17. Rxe2 {[%emt 0:00:23] [#] Threatens to win with Rxd8.} Rxd1+ {[%emt 0:03:08]} 18. Nxd1 {[%emt 0:00:03]} Nd3 {[%emt 0:00:06]} 19. Bg5 {[%emt 0:01:25]} h6 {[%emt 0:01:34]} 20. Bxf6 {[%emt 0:00:44]} gxf6 {[%emt 0:00:03]} 21. Rd2 {[%emt 0:01:34]} Ne5 {[%emt 0:01:15]} 22. Kf1 {[%emt 0:00:39]} Kf8 {[%emt 0:03:54]} 23. Ke2 {[%emt 0:10:08]} Ke7 {[%emt 0:00:30]} (23... f5 $5 {[%cal Rf5e4]}) 24. f4 {[%emt 0:00:38]} Nd7 {[%emt 0:00:50]} 25. Kf3 {[%emt 0:04:28]} Nf8 {[%emt 0:02:12]} 26. Ne3 {[%emt 0:05:23]} Bxe3 {[%emt 0:00:53]} 27. Kxe3 $14 {[%emt 0:00:03] KRB-KRN} Ne6 {[%emt 0:02:43]} 28. Bf1 {[%emt 0:01:16]} Rg8 {[%emt 0:03:16]} 29. g4 {[%emt 0:00:47]} a5 {[%emt 0:06:03]} 30. Bc4 {[%emt 0:01:39]} h5 {[%emt 0:06:49]} 31. Kf3 {[%emt 0:00:31]} ({Much worse is} 31. gxh5 Rg3+ 32. Kf2 Rxh3 $17) 31... hxg4+ {[%emt 0:01:59]} 32. hxg4 {[%emt 0:00:53] Weighted Error Value: White=0.05 (flawless) /Black=0.04 (flawless)} 1/2-1/2

[Event "2nd Doppelbauer Kiel GM 2022"]
[Site "Kiel"]
[Date "2022.07.03"]
[Round "7.2"]
[White "Hacker, Jonas"]
[Black "Rosner, Jonas"]
[Result "1/2-1/2"]
[ECO "C43"]
[WhiteElo "2396"]
[BlackElo "2469"]
[Annotator "TA"]
[PlyCount "57"]
[EventDate "2022.06.30"]
[EventType "tourn"]
[EventCountry "GER"]
[SourceTitle "playchess.com"]
[Source "ChessBase"]
[SourceQuality "1"]
[TimeControl "40/5400+30:1800+30"]

{[%evp 17,57,0,0,0,8,7,0,11,10,0,0,0,0,0,0,0,0,0,0,0,0,0,0,0,0,0,0,0,0,0,0,0,0,0,0,0,0,0,0,0,0,0]} 1. e4 {[%emt 0:00:05]} e5 {[%emt 0:00:06]} 2. Nf3 {[%emt 0:00:06]} Nf6 {[%emt 0:00:06]} 3. d4 {[%emt 0:01:41]} Nxe4 {[%emt 0:00:24]} 4. Bd3 {[%emt 0:00:09]} d5 {[%emt 0:00:16]} 5. Nxe5 {[%emt 0:00:09]} Nd7 {[%emt 0:00:29]} 6. Nxd7 {[%emt 0:00:42]} Bxd7 {[%emt 0:00:03]} 7. O-O {[%emt 0:00:11]} Bd6 {[%emt 0:00:27]} 8. Nc3 {[%emt 0:00:15]} Nxc3 {[%emt 0:00:37]} 9. bxc3 {[%emt 0:00:05]} O-O {[%emt 0:00:33] The position is equal.} 10. Qh5 {[%emt 0:00:21][%csl Gd3,LRd5,LRh7][%cal Rh5h7] [#] Prevents Qh4. C43: Petroff Defence: 3 d4.} f5 $1 {[%emt 0:00:28]} 11. Re1 {[%emt 0:00:48]} c6 {[%emt 0:01:05]} 12. Bg5 {[%emt 0:07:46]} Qc7 {[%emt 0:00:27]} 13. Be7 {[%emt 0:03:11] 13.Re3 gains popularity.} Rfe8 {[%emt 0:09:13] [#]} 14. Bxd6 $146 {[%emt 0:15:00]} ({Predecessor:} 14. Bxf5 Bxh2+ 15. Qxh2 Qxh2+ 16. Kxh2 Bxf5 17. Rac1 Kf7 18. Bc5 b6 19. Bd6 Rxe1 20. Rxe1 {½-½ (59) Balogh,C (2527)-Jussupow,A (2583) Bastia 2004}) 14... Qxd6 {[%emt 0:01:19]} 15. g3 {[%emt 0:03:56]} ({Not} 15. Bxf5 $2 g6 16. Bxg6 (16. Rxe8+ $2 Rxe8 17. Bxd7 gxh5 $19) 16... Qxg6 17. Qxg6+ hxg6 $19) 15... g6 {[%emt 0:03:19]} 16. Qh6 {[%emt 0:04:17]} Rxe1+ {[%emt 0:10:21]} 17. Rxe1 {[%emt 0:00:02]} b5 {[%emt 0:05:50]} 18. h4 {[%emt 0:07:12]} Qf8 {[%emt 0:04:33]} 19. Qf4 {[%emt 0:01:42]} Re8 {[%emt 0:00:17]} 20. Rxe8 {[%emt 0:02:42]} Bxe8 $11 {[%emt 0:02:23][%mdl 4096] Endgame KQB-KQB} 21. h5 {[%emt 0:06:28]} a5 {[%emt 0:01:12]} 22. Qe5 {[%emt 0:02:26]} a4 {[%emt 0:01:44]} 23. Kg2 {[%emt 0:04:39]} Bd7 {[%emt 0:01:47]} 24. h6 {[%emt 0:04:44]} Kf7 {[%emt 0:03:59]} (24... Qxh6 $2 25. Qe7 Bc8 26. Qe8+ Qf8 27. Qxc6 $18) 25. Qf4 {[%emt 0:01:24]} Ke7 {[%emt 0:04:19]} 26. Qe5+ {[%emt 0:02:30]} Be6 {[%emt 0:01:27]} 27. Qc7+ {[%emt 0:03:51]} Bd7 {[%emt 0:01:51]} 28. Qe5+ {[%emt 0:02:20]} Be6 {[%emt 0:00:03]} 29. Qc7+ {[%emt 0:03:17] A balanced but interesting game.  Weighted Error Value: White=0.01 (flawless) /Black=0.00 (flawless)} 1/2-1/2

[Event "2nd Doppelbauer Kiel GM 2022"]
[Site "Kiel"]
[Date "2022.07.03"]
[Round "7.3"]
[White "Teclaf, Pawel"]
[Black "Horvath, Dominik"]
[Result "1/2-1/2"]
[ECO "C81"]
[WhiteElo "2537"]
[BlackElo "2482"]
[Annotator "TA"]
[PlyCount "53"]
[EventDate "2022.06.30"]
[EventType "tourn"]
[EventCountry "GER"]
[SourceTitle "playchess.com"]
[Source "ChessBase"]
[SourceQuality "1"]
[TimeControl "40/5400+30:1800+30"]

{[%evp 28,37,10,12,29,22,22,16,30,48,39,42]} 1. e4 {[%emt 1:31:00]} e5 {[%emt 0:02:50]} 2. Nf3 {[%emt 0:00:00]} Nc6 {[%emt 0:00:05]} 3. Bb5 {[%emt 0:00:00][%cal Bf1b5,Bb5a4,Ba4b3,Bb3c4][%mdl 32]} a6 {[%emt 0:00:04]} 4. Ba4 {[%emt 0:00:00]} Nf6 {[%emt 0:00:08]} 5. O-O {[%emt 0:00:00]} Nxe4 {[%emt 0:00:09]} 6. d4 {[%emt 0:00:00]} b5 {[%emt 0:00:04]} 7. Bb3 {[%emt 0:00:00]} d5 {[%emt 0:00:04]} 8. dxe5 {[%emt 0:00:00]} Be6 {[%emt 0:00:03]} 9. Qe2 {[%emt 0:00:00]} Be7 {[%emt 0:00:08]} 10. Rd1 {[%emt 0:00:00]} O-O {[%emt 0:00:14]} 11. c4 {[%emt 0:00:00]} bxc4 {[%emt 0:00:07]} 12. Bxc4 {[%emt 0:00:00]} Bc5 {[%emt 0:00:04]} 13. Be3 {[%emt 0:00:00]} Bxe3 {[%emt 0:00:04]} 14. Qxe3 {[%emt 0:00:00]} Qb8 {[%emt 0:00:05]} 15. Bb3 $1 {[%emt 0:00:00]} Na5 {[%emt 0:00:13] C81: Open Ruy Lopez: Keres Variation (9 Qe2).} 16. Nd4 {[%emt 0:00:00]} c5 {[%emt 0:00:04]} 17. Nxe6 {[%emt 0:00:00]} fxe6 {[%emt 0:00:04]} 18. f3 {[%emt 0:00:00]} c4 {[%emt 0:00:04]} (18... Qxe5 $2 19. fxe4 Qxb2 20. Nd2 $18) (18... Nxb3 $2 19. axb3 Ng5 20. Qxg5 $18) 19. fxe4 {[%emt 0:00:00] [#] Black did not feel at home in the position after the opening.  Weighted Error Value: White=0.00 (flawless) /Black=0.04 (flawless)} {Predecessor:} cxb3 $146 20. exd5 bxa2 21. Rxa2 Nc4 22. Qd4 Qb3 23. Nc3 Rac8 24. dxe6 Nxb2 25. Rb1 Qxc3 26. Qxc3 Rxc3 27. Raxb2 {½-½ (48) Niemann,H (2642)-Sevian,S (2684) Saint Louis 2022} 1/2-1/2

[Event "2nd Doppelbauer Kiel GM 2022"]
[Site "Kiel"]
[Date "2022.07.03"]
[Round "7.4"]
[White "Farokhi, Keyvan"]
[Black "Bogner, Sebastian"]
[Result "0-1"]
[ECO "E62"]
[WhiteElo "2360"]
[BlackElo "2553"]
[Annotator "TA"]
[PlyCount "92"]
[EventDate "2022.06.30"]
[EventType "tourn"]
[EventCountry "GER"]
[SourceTitle "playchess.com"]
[Source "ChessBase"]
[SourceQuality "1"]
[TimeControl "40/5400+30:1800+30"]

{[%evp 14,91,26,0,0,0,0,0,0,-14,45,9,33,-14,-16,-24,-18,-15,-11,-18,-19,-11,-24,-16,-15,-12,-12,-70,-66,-108,-77,-166,-166,-166,-166,-299,-190,-243,-236,-283,-266,-309,-196,-199,-190,-180,-172,-335,-264,-273,-278,-266,-272,-261,-279,-266,-190,-197,-185,-181,-191,-239,-97,-387,-377,-29986,-29987,-29987,-29988,-29988,-29989,-29992,-29993,-29993,-29994,-29994,-29990,-29991,-29985,-29999]} 1. Nf3 {[%emt 0:00:06]} Nf6 {[%emt 0:01:25]} 2. c4 {[%emt 0:00:09]} g6 {[%emt 0:00:22]} 3. d4 {[%emt 0:00:11]} Bg7 {[%emt 0:00:05]} 4. g3 {[%emt 0:00:19]} O-O {[%emt 0:00:07]} 5. Bg2 {[%emt 0:00:09]} d6 {[%emt 0:00:38]} 6. Nc3 {[%emt 0:00:11]} Nc6 {[%emt 0:00:23]} 7. Bf4 {[%emt 0:00:07]} Bf5 {[%emt 0:04:09]} 8. O-O {[%emt 0:07:15] 8.Rc1 is setting a new trend.} (8. d5 $5 {[%cal Rd5c6]} Nb4 9. Nd4 $11) 8... Ne4 {[%emt 0:00:59] E62: King's Indian: Fianchetto: 6...c6 and Panno Variation (6...Nc6) without ...a6.} 9. Nxe4 {[%emt 0:03:20]} Bxe4 {[%emt 0:00:14]} 10. d5 {[%emt 0:08:06]} Na5 {[%emt 0:05:51] The position is equal.} 11. Qa4 {[%emt 0:06:10]} c5 {[%emt 0:00:49]} (11... b6 $11) 12. Bd2 {[%emt 0:00:23]} b6 {[%emt 0:01:03] [#]} 13. Nh4 $146 {[%emt 0:05:36]} (13. Bh3 $14) ({Predecessor:} 13. b3 e6 14. dxe6 fxe6 15. Rad1 Bb2 16. Ng5 Bxg2 17. Kxg2 Qe7 18. Nf3 Rad8 19. Bxa5 bxa5 {1-0 (29) Caruana,F (2835)-Safin,R (2287) Chess.com INT 2020}) 13... Bxg2 $11 {[%emt 0:01:17]} 14. Nxg2 {[%emt 0:00:07]} Bxb2 {[%emt 0:00:42]} 15. Rab1 {[%emt 0:00:08]} Bf6 {[%emt 0:00:20]} 16. Bxa5 {[%emt 0:00:20]} bxa5 {[%emt 0:00:09]} 17. Rb7 {[%emt 0:02:11]} Rb8 {[%emt 0:06:48]} 18. Rfb1 {[%emt 0:00:43]} Rxb7 {[%emt 0:00:01]} 19. Rxb7 {[%emt 0:00:07]} Qc8 $36 {[%emt 0:00:10][%mdl 2048] Black has some pressure.} 20. Rb3 {[%emt 0:10:00]} ({White should play} 20. Qb3 $11) 20... Qg4 $15 {[%emt 0:06:50]} 21. Nf4 {[%emt 0:01:18]} Qf5 {[%emt 0:08:37]} 22. Qxa5 {[%emt 0:07:41]} (22. Rb7 $17) 22... Qc2 $19 {[%emt 0:01:10]} 23. Qxa7 {[%emt 0:01:48]} Qxc4 {[%emt 0:04:57]} 24. Rf3 {[%emt 0:10:40]} (24. Rb8 $142) 24... Qc1+ {[%emt 0:04:02]} 25. Kg2 {[%emt 0:00:06]} c4 {[%emt 0:00:17][%cal Bc5c4,Bc4c3][%mdl 32]} 26. a4 {[%emt 0:05:13]} c3 {[%emt 0:03:03]} 27. a5 {[%emt 0:00:35]} c2 {[%emt 0:00:56]} 28. Nd3 {[%emt 0:00:07]} Qd2 {[%emt 0:01:20] White must now prevent ...Rc8.} 29. Qc7 {[%emt 0:01:29] Against Rc8} Qxe2 {[%emt 0:09:27]} 30. a6 $2 {[%emt 0:01:50]} (30. Nb4) 30... Qe4 {[%emt 0:07:52] And now ...g5 would win.} 31. Qxc2 {[%emt 0:09:15] [#]} g5 $1 {[%emt 0:00:33] ...g4 is the strong threat.} (31... Qxd5 32. Nb4 Qb5 33. Qe4 $11) 32. h3 {[%emt 0:00:15] [#]} h5 {[%emt 0:00:23] Prevents g4. Strongly threatening ...g4.} (32... Qxd5 33. Nb4 Qd4 34. Nc6 $14) 33. g4 {[%emt 0:00:16]} ({Avoid the trap} 33. Qd1 $2 g4 34. Nf4 (34. hxg4 $2 hxg4 35. Nf4 Ra8 $19) 34... gxf3+ $19) 33... hxg4 {[%emt 0:02:38]} 34. hxg4 {[%emt 0:00:01]} Qxg4+ {[%emt 0:01:37]} 35. Rg3 {[%emt 0:00:07]} Qe4+ {[%emt 0:00:06]} 36. f3 {[%emt 0:00:16]} Qxd5 {[%emt 0:00:06]} 37. Nf4 {[%emt 0:03:49]} (37. Rg4 $142) 37... Qc5 {[%emt 0:00:56]} (37... Qa5 $19 38. Nh3 (38. Rh3 $2 Rb8 $19) 38... Ra8 39. Nxg5 Bxg5) 38. Qd3 $2 {[%emt 0:05:19][%mdl 8192] White does not recover from this.} (38. Qxc5 $17 {only move.} dxc5 39. Nd3) 38... Rb8 {[%emt 0:03:44]} 39. Nd5 $2 {[%emt 0:03:01]} (39. Ne2 $19) 39... Rb2+ {[%emt 0:00:32] Black mates.} 40. Kh3 {[%emt 0:00:07]} Qc8+ {[%emt 0:02:04]} 41. Rg4 {[%emt 0:30:12]} Qc1 {[%emt 0:32:19]} 42. Nxf6+ {[%emt 0:02:43]} exf6 {[%emt 0:00:19]} 43. Rd4 {[%emt 0:00:12]} Qh1+ {[%emt 0:02:16]} 44. Kg4 {[%emt 0:00:02]} Rg2+ {[%emt 0:00:22]} 45. Kf5 {[%emt 0:00:05]} Qh3+ {[%emt 0:00:09]} 46. Kxf6 {[%emt 0:00:11]} Qe6# {[%emt 0:00:39] Weighted Error Value: White=0.54/Black=0.18 (very precise)} 0-1